[Event "Titled Tuesday Blitz June 27 Early 2023"]
[White "Szente Varga, Fruzsina"]
[Black "Alinasab, Mobina"]
[WhiteFideId "712264"]
[BlackFideId "12528897"]
[WhiteElo "2366"]
[BlackElo "2548"]
[Result "0-1"]
[Round "2"]
[TimeControl "180+2"]
[Date "2023.06.27"]
[WhiteClock "0:00:03"]
[BlackClock "0:00:17"]
[Board "159"]

1. e4 {[%clk 0:03:00]}  c5 {[%clk 0:02:54]} 2. Nf3 {[%clk 0:03:00]}  e6 {[%clk 0:02:54]} 3. b3 {[%clk 0:03:00]}  Nc6 {[%clk 0:02:52]} 4. Bb2 {[%clk 0:03:00]}  d6 {[%clk 0:02:52]} 5. Bb5 {[%clk 0:02:57]}  a6 {[%clk 0:02:49]} 6. Bxc6+ {[%clk 0:02:55]}  bxc6 {[%clk 0:02:50]} 7. O-O {[%clk 0:02:54]}  e5 {[%clk 0:02:50]} 8. Na3 {[%clk 0:02:29]}  g6 {[%clk 0:02:44]} 9. d3 {[%clk 0:02:18]}  Bg7 {[%clk 0:02:44]} 10. Nc4 {[%clk 0:02:17]}  Be6 {[%clk 0:02:43]} 11. Nfd2 {[%clk 0:02:15]}  Nf6 {[%clk 0:02:32]} 12. f4 {[%clk 0:02:08]}  exf4 {[%clk 0:02:31]} 13. Rxf4 {[%clk 0:02:02]}  O-O {[%clk 0:02:27]} 14. Qf1 {[%clk 0:01:22]}  Nh5 {[%clk 0:02:22]} 15. Bxg7 {[%clk 0:01:19]}  Kxg7 {[%clk 0:02:22]} 16. Rf2 {[%clk 0:00:59]}  d5 {[%clk 0:02:21]} 17. Ne3 {[%clk 0:00:46]}  Qg5 {[%clk 0:01:24]} 18. Qe1 {[%clk 0:00:33]}  Nf4 {[%clk 0:01:19]} 19. Kh1 {[%clk 0:00:28]}  f6 {[%clk 0:01:00]} 20. Nf3 {[%clk 0:00:28]}  Qh6 {[%clk 0:01:00]} 21. e5 {[%clk 0:00:18]}  fxe5 {[%clk 0:00:57]} 22. Nxe5 {[%clk 0:00:19]}  d4 {[%clk 0:00:53]} 23. N3g4 {[%clk 0:00:19]}  Bxg4 {[%clk 0:00:53]} 24. Nxg4 {[%clk 0:00:20]}  Qg5 {[%clk 0:00:53]} 25. Qe5+ {[%clk 0:00:19]}  Qxe5 {[%clk 0:00:49]} 26. Nxe5 {[%clk 0:00:20]}  Nd5 {[%clk 0:00:49]} 27. Raf1 {[%clk 0:00:19]}  Rxf2 {[%clk 0:00:47]} 28. Rxf2 {[%clk 0:00:20]}  Re8 {[%clk 0:00:45]} 29. Nf3 {[%clk 0:00:17]}  Nc3 {[%clk 0:00:41]} 30. h3 {[%clk 0:00:16]}  Nxa2 {[%clk 0:00:41]} 31. Nd2 {[%clk 0:00:16]}  Nc3 {[%clk 0:00:37]} 32. Nc4 {[%clk 0:00:14]}  Re1+ {[%clk 0:00:36]} 33. Kh2 {[%clk 0:00:14]}  h5 {[%clk 0:00:35]} 34. Na5 {[%clk 0:00:14]}  Nd5 {[%clk 0:00:35]} 35. Nxc6 {[%clk 0:00:13]}  h4 {[%clk 0:00:35]} 36. g3 {[%clk 0:00:12]}  hxg3+ {[%clk 0:00:32]} 37. Kxg3 {[%clk 0:00:13]}  Ne3 {[%clk 0:00:33]} 38. Nd8 {[%clk 0:00:11]}  Rc1 {[%clk 0:00:32]} 39. Ne6+ {[%clk 0:00:11]}  Kh6 {[%clk 0:00:31]} 40. Nxc5 {[%clk 0:00:12]}  Nxc2 {[%clk 0:00:31]} 41. Ne6 {[%clk 0:00:11]}  Re1 {[%clk 0:00:28]} 42. Nf4 {[%clk 0:00:10]}  Nb4 {[%clk 0:00:25]} 43. Kf3 {[%clk 0:00:08]}  Re3+ {[%clk 0:00:23]} 44. Kg4 {[%clk 0:00:08]}  Nxd3 {[%clk 0:00:21]} 45. Nd5 {[%clk 0:00:07]}  Nxf2+ {[%clk 0:00:16]} 46. Kf4 {[%clk 0:00:06]}  Nxh3+ {[%clk 0:00:16]} 47. Kg4 {[%clk 0:00:05]}  Nf2+ {[%clk 0:00:16]} 48. Kf4 {[%clk 0:00:05]}  Rxb3 {[%clk 0:00:17]} 49. Ne7 {[%clk 0:00:03]}  a5 {[%clk 0:00:17]} 0-1


[Site "https://www.chess.com"]

[Event "Titled Tuesday Blitz June 27 Early 2023"]
[White "Mickiewicz, Piotr"]
[Black "Roberson, Peter T"]
[WhiteFideId "1114891"]
[BlackFideId "412384"]
[WhiteElo "2361"]
[BlackElo "2547"]
[Result "1-0"]
[Round "2"]
[TimeControl "180+2"]
[Date "2023.06.27"]
[WhiteClock "0:00:24"]
[BlackClock "0:00:00"]
[Board "160"]

1. e4 {[%clk 0:03:00]}  e5 {[%clk 0:02:58]} 2. Nf3 {[%clk 0:03:00]}  Nc6 {[%clk 0:02:59]} 3. Bb5 {[%clk 0:03:01]}  Nf6 {[%clk 0:02:59]} 4. d3 {[%clk 0:03:00]}  d6 {[%clk 0:02:58]} 5. c4 {[%clk 0:02:59]}  Be7 {[%clk 0:02:55]} 6. h3 {[%clk 0:02:58]}  O-O {[%clk 0:02:56]} 7. Be3 {[%clk 0:02:58]}  Nb8 {[%clk 0:02:34]} 8. Nc3 {[%clk 0:02:57]}  c6 {[%clk 0:02:32]} 9. Ba4 {[%clk 0:02:56]}  Nbd7 {[%clk 0:02:29]} 10. O-O {[%clk 0:02:54]}  Re8 {[%clk 0:02:29]} 11. Bc2 {[%clk 0:02:52]}  Bf8 {[%clk 0:02:28]} 12. Rb1 {[%clk 0:02:46]}  d5 {[%clk 0:02:24]} 13. cxd5 {[%clk 0:02:42]}  cxd5 {[%clk 0:02:24]} 14. exd5 {[%clk 0:02:40]}  Nb6 {[%clk 0:02:23]} 15. Bg5 {[%clk 0:02:40]}  h6 {[%clk 0:02:19]} 16. Bxf6 {[%clk 0:02:40]}  Qxf6 {[%clk 0:02:20]} 17. a3 {[%clk 0:02:36]}  Bf5 {[%clk 0:02:19]} 18. Re1 {[%clk 0:02:33]}  Rad8 {[%clk 0:02:17]} 19. Bb3 {[%clk 0:02:32]}  Bc5 {[%clk 0:02:10]} 20. Ne4 {[%clk 0:02:31]}  Qe7 {[%clk 0:02:02]} 21. Nxc5 {[%clk 0:02:31]}  Qxc5 {[%clk 0:02:03]} 22. Rxe5 {[%clk 0:02:27]}  Rxe5 {[%clk 0:02:02]} 23. Nxe5 {[%clk 0:02:25]}  Nxd5 {[%clk 0:02:00]} 24. d4 {[%clk 0:02:12]}  Qb6 {[%clk 0:01:19]} 25. Rc1 {[%clk 0:02:10]}  f6 {[%clk 0:01:14]} 26. Nc4 {[%clk 0:02:04]}  Qa6 {[%clk 0:01:13]} 27. Ne3 {[%clk 0:02:03]}  Be6 {[%clk 0:01:13]} 28. Bc4 {[%clk 0:01:45]}  Qd6 {[%clk 0:01:10]} 29. Qb3 {[%clk 0:01:31]}  b6 {[%clk 0:00:59]} 30. Bxd5 {[%clk 0:00:56]}  Bxd5 {[%clk 0:00:58]} 31. Nxd5 {[%clk 0:00:57]}  Qxd5 {[%clk 0:00:59]} 32. Qxd5+ {[%clk 0:00:57]}  Rxd5 {[%clk 0:01:00]} 33. Rd1 {[%clk 0:00:58]}  Kf7 {[%clk 0:01:00]} 34. Kf1 {[%clk 0:00:58]}  Rb5 {[%clk 0:00:58]} 35. b4 {[%clk 0:00:53]}  a5 {[%clk 0:00:54]} 36. bxa5 {[%clk 0:00:47]}  Rxa5 {[%clk 0:00:54]} 37. Rd3 {[%clk 0:00:47]}  Ke6 {[%clk 0:00:54]} 38. Rb3 {[%clk 0:00:37]}  b5 {[%clk 0:00:51]} 39. Ke2 {[%clk 0:00:37]}  Kd5 {[%clk 0:00:47]} 40. Kd3 {[%clk 0:00:37]}  g5 {[%clk 0:00:47]} 41. Rc3 {[%clk 0:00:37]}  h5 {[%clk 0:00:41]} 42. Rc5+ {[%clk 0:00:36]}  Kd6 {[%clk 0:00:41]} 43. Ke4 {[%clk 0:00:36]}  Rxa3 {[%clk 0:00:39]} 44. Rxb5 {[%clk 0:00:35]}  Ra2 {[%clk 0:00:38]} 45. Rb6+ {[%clk 0:00:29]}  Ke7 {[%clk 0:00:39]} 46. g4 {[%clk 0:00:27]}  hxg4 {[%clk 0:00:37]} 47. hxg4 {[%clk 0:00:28]}  Rxf2 {[%clk 0:00:37]} 48. Kd5 {[%clk 0:00:28]}  Rf4 {[%clk 0:00:28]} 49. Rb7+ {[%clk 0:00:29]}  Kf8 {[%clk 0:00:27]} 50. Kc5 {[%clk 0:00:26]}  Rxg4 {[%clk 0:00:25]} 51. d5 {[%clk 0:00:27]}  Rg1 {[%clk 0:00:17]} 52. d6 {[%clk 0:00:26]}  g4 {[%clk 0:00:14]} 53. Rb8+ {[%clk 0:00:26]}  Kf7 {[%clk 0:00:13]} 54. d7 {[%clk 0:00:26]}  Rc1+ {[%clk 0:00:10]} 55. Kd6 {[%clk 0:00:26]}  Rd1+ {[%clk 0:00:09]} 56. Kc6 {[%clk 0:00:26]}  Rc1+ {[%clk 0:00:06]} 57. Kb7 {[%clk 0:00:25]}  f5 {[%clk 0:00:00]} 58. d8=Q {[%clk 0:00:24]} 1-0


[Site "https://www.chess.com"]

[Event "Titled Tuesday Blitz June 27 Early 2023"]
[White "Jimenez Almeida, Luis David"]
[Black "Fajdetic, Hrvoje"]
[WhiteFideId "22242244"]
[BlackFideId "14501945"]
[WhiteElo "2536"]
[BlackElo "2352"]
[Result "1/2-1/2"]
[Round "2"]
[TimeControl "180+2"]
[Date "2023.06.27"]
[WhiteClock "0:02:42"]
[BlackClock "0:01:42"]
[Board "165"]

1. e4 {[%clk 0:03:00]}  c5 {[%clk 0:02:58]} 2. Nf3 {[%clk 0:03:00]}  a6 {[%clk 0:02:58]} 3. c4 {[%clk 0:02:59]}  Nc6 {[%clk 0:02:53]} 4. Nc3 {[%clk 0:02:59]}  g6 {[%clk 0:02:52]} 5. d4 {[%clk 0:02:59]}  cxd4 {[%clk 0:02:52]} 6. Nxd4 {[%clk 0:03:00]}  Bg7 {[%clk 0:02:53]} 7. Be3 {[%clk 0:02:59]}  Nf6 {[%clk 0:02:44]} 8. Be2 {[%clk 0:02:59]}  d6 {[%clk 0:02:35]} 9. O-O {[%clk 0:02:57]}  O-O {[%clk 0:02:35]} 10. f3 {[%clk 0:02:55]}  Nxd4 {[%clk 0:02:01]} 11. Bxd4 {[%clk 0:02:54]}  Be6 {[%clk 0:02:01]} 12. Qd2 {[%clk 0:02:54]}  Rc8 {[%clk 0:01:59]} 13. b3 {[%clk 0:02:52]}  Nd7 {[%clk 0:01:58]} 14. Be3 {[%clk 0:02:52]}  b5 {[%clk 0:01:42]} 15. Rac1 {[%clk 0:02:42]} 1/2-1/2


[Site "https://www.chess.com"]

[Event "Titled Tuesday Blitz June 27 Early 2023"]
[White "Thecourseoisildur"]
[Black "Glavina, Pablo"]
[BlackFideId "100234"]
[WhiteElo "2534"]
[BlackElo "2349"]
[Result "1/2-1/2"]
[Round "2"]
[TimeControl "180+2"]
[Date "2023.06.27"]
[WhiteClock "0:00:11"]
[BlackClock "0:00:33"]
[Board "167"]

1. e4 {[%clk 0:03:00]}  e5 {[%clk 0:02:58]} 2. Nf3 {[%clk 0:03:00]}  Nc6 {[%clk 0:02:58]} 3. d4 {[%clk 0:02:56]}  exd4 {[%clk 0:02:57]} 4. Nxd4 {[%clk 0:02:55]}  Bc5 {[%clk 0:02:56]} 5. Nb3 {[%clk 0:02:47]}  Bb6 {[%clk 0:02:49]} 6. Nc3 {[%clk 0:02:47]}  Nf6 {[%clk 0:02:43]} 7. Qe2 {[%clk 0:02:44]}  O-O {[%clk 0:02:39]} 8. Bg5 {[%clk 0:02:43]}  h6 {[%clk 0:02:35]} 9. Bh4 {[%clk 0:02:38]}  a5 {[%clk 0:02:32]} 10. Nd5 {[%clk 0:02:18]}  g5 {[%clk 0:02:27]} 11. Nxb6 {[%clk 0:02:02]}  cxb6 {[%clk 0:02:24]} 12. Bg3 {[%clk 0:02:03]}  Nxe4 {[%clk 0:02:21]} 13. O-O-O {[%clk 0:02:00]}  d5 {[%clk 0:02:10]} 14. f3 {[%clk 0:01:44]}  Nxg3 {[%clk 0:02:08]} 15. hxg3 {[%clk 0:01:44]}  Qf6 {[%clk 0:02:08]} 16. Rxd5 {[%clk 0:01:31]}  Be6 {[%clk 0:02:03]} 17. Rb5 {[%clk 0:01:26]}  Bxb3 {[%clk 0:02:02]} 18. axb3 {[%clk 0:01:21]}  Nd4 {[%clk 0:02:01]} 19. Qe5 {[%clk 0:01:21]}  Qxe5 {[%clk 0:01:54]} 20. Rxe5 {[%clk 0:01:22]}  Rac8 {[%clk 0:01:53]} 21. Bc4 {[%clk 0:01:16]}  b5 {[%clk 0:01:49]} 22. Bd3 {[%clk 0:01:04]}  Nxb3+ {[%clk 0:01:47]} 23. Kd1 {[%clk 0:00:56]}  Nc5 {[%clk 0:01:45]} 24. Rxh6 {[%clk 0:00:54]}  f6 {[%clk 0:01:40]} 25. Re7 {[%clk 0:00:51]}  Nxd3 {[%clk 0:01:36]} 26. Rg6+ {[%clk 0:00:51]}  Kh8 {[%clk 0:01:35]} 27. cxd3 {[%clk 0:00:52]}  Rce8 {[%clk 0:01:24]} 28. Rxb7 {[%clk 0:00:49]}  Re5 {[%clk 0:01:13]} 29. f4 {[%clk 0:00:43]}  Rd5 {[%clk 0:01:04]} 30. Ke2 {[%clk 0:00:39]}  Re8+ {[%clk 0:01:02]} 31. Kf2 {[%clk 0:00:31]}  Rxd3 {[%clk 0:00:55]} 32. Rxf6 {[%clk 0:00:31]}  Rd2+ {[%clk 0:00:55]} 33. Kf3 {[%clk 0:00:31]}  gxf4 {[%clk 0:00:48]} 34. gxf4 {[%clk 0:00:30]}  Rxb2 {[%clk 0:00:46]} 35. Rh6+ {[%clk 0:00:24]}  Kg8 {[%clk 0:00:44]} 36. Rh5 {[%clk 0:00:24]}  a4 {[%clk 0:00:40]} 37. Rhxb5 {[%clk 0:00:21]}  Rxb5 {[%clk 0:00:38]} 38. Rxb5 {[%clk 0:00:22]}  Ra8 {[%clk 0:00:37]} 39. Rb2 {[%clk 0:00:21]}  a3 {[%clk 0:00:37]} 40. Ra2 {[%clk 0:00:22]}  Kf7 {[%clk 0:00:37]} 41. g4 {[%clk 0:00:20]}  Ke6 {[%clk 0:00:36]} 42. Ke4 {[%clk 0:00:20]}  Ra4+ {[%clk 0:00:35]} 43. Ke3 {[%clk 0:00:20]}  Kf6 {[%clk 0:00:35]} 44. Kf3 {[%clk 0:00:17]}  Kg6 {[%clk 0:00:34]} 45. Kg3 {[%clk 0:00:16]}  Kf6 {[%clk 0:00:34]} 46. Kf3 {[%clk 0:00:11]}  Kg6 {[%clk 0:00:33]} 47. Kg3 {[%clk 0:00:11]} 1/2-1/2


[Site "https://www.chess.com"]

[Event "Titled Tuesday Blitz June 27 Early 2023"]
[White "Ng, Clive"]
[Black "kuanysh1981"]
[WhiteFideId "3214869"]
[WhiteElo "2349"]
[BlackElo "2532"]
[Result "0-1"]
[Round "2"]
[TimeControl "180+2"]
[Date "2023.06.27"]
[WhiteClock "0:00:00"]
[BlackClock "0:00:12"]
[Board "168"]

1. e4 {[%clk 0:02:57]}  c5 {[%clk 0:02:59]} 2. Nf3 {[%clk 0:02:55]}  e6 {[%clk 0:02:59]} 3. d4 {[%clk 0:02:53]}  cxd4 {[%clk 0:03:00]} 4. Nxd4 {[%clk 0:02:53]}  a6 {[%clk 0:03:01]} 5. Bd3 {[%clk 0:02:51]}  Qc7 {[%clk 0:03:01]} 6. c4 {[%clk 0:02:49]}  Nf6 {[%clk 0:03:00]} 7. Nc3 {[%clk 0:02:49]}  Bc5 {[%clk 0:02:58]} 8. Nb3 {[%clk 0:02:45]}  Ba7 {[%clk 0:02:57]} 9. Qe2 {[%clk 0:02:44]}  Nc6 {[%clk 0:02:56]} 10. Be3 {[%clk 0:02:42]}  Bxe3 {[%clk 0:02:51]} 11. Qxe3 {[%clk 0:02:42]}  d6 {[%clk 0:02:48]} 12. O-O {[%clk 0:02:41]}  O-O {[%clk 0:02:43]} 13. Rad1 {[%clk 0:02:35]}  Ne5 {[%clk 0:02:43]} 14. Qe2 {[%clk 0:02:34]}  Bd7 {[%clk 0:02:26]} 15. Nd4 {[%clk 0:02:22]}  Rac8 {[%clk 0:02:21]} 16. Nc2 {[%clk 0:01:31]}  Rfd8 {[%clk 0:02:15]} 17. Ne3 {[%clk 0:01:30]}  Qb8 {[%clk 0:02:01]} 18. f4 {[%clk 0:01:30]}  Ng6 {[%clk 0:01:59]} 19. Kh1 {[%clk 0:01:24]}  b5 {[%clk 0:01:52]} 20. cxb5 {[%clk 0:01:18]}  axb5 {[%clk 0:01:51]} 21. f5 {[%clk 0:01:00]}  Ne5 {[%clk 0:01:50]} 22. fxe6 {[%clk 0:00:46]}  fxe6 {[%clk 0:01:51]} 23. Nb1 {[%clk 0:00:41]}  Bc6 {[%clk 0:01:42]} 24. Nd2 {[%clk 0:00:40]}  Rf8 {[%clk 0:01:40]} 25. Nc2 {[%clk 0:00:37]}  b4 {[%clk 0:01:31]} 26. Nd4 {[%clk 0:00:36]}  Bd7 {[%clk 0:01:27]} 27. Nc4 {[%clk 0:00:33]}  d5 {[%clk 0:00:53]} 28. exd5 {[%clk 0:00:28]}  Nxc4 {[%clk 0:00:44]} 29. Bxc4 {[%clk 0:00:26]}  exd5 {[%clk 0:00:44]} 30. Bd3 {[%clk 0:00:21]}  Ng4 {[%clk 0:00:37]} 31. g3 {[%clk 0:00:19]}  Qe5 {[%clk 0:00:30]} 32. Qxe5 {[%clk 0:00:17]}  Nxe5 {[%clk 0:00:31]} 33. Rxf8+ {[%clk 0:00:15]}  Rxf8 {[%clk 0:00:31]} 34. Be2 {[%clk 0:00:05]}  Nc4 {[%clk 0:00:24]} 35. b3 {[%clk 0:00:03]}  Ne3 {[%clk 0:00:16]} 36. Rd2 {[%clk 0:00:02]}  Rf2 {[%clk 0:00:13]} 37. Kg1 {[%clk 0:00:02]}  Rg2+ {[%clk 0:00:12]} 38. Kh1 {[%clk 0:00:02]}  Bh3 {[%clk 0:00:12]} 39. Nf3 {[%clk 0:00:02]}  Rf2 {[%clk 0:00:11]} 40. Kg1 {[%clk 0:00:01]}  Rg2+ {[%clk 0:00:11]} 41. Kh1 {[%clk 0:00:00]}  Ng4 {[%clk 0:00:12]} 0-1


[Site "https://www.chess.com"]

[Event "Titled Tuesday Blitz June 27 Early 2023"]
[White "Sovetbekova, Nurai"]
[Black "Novik, Maxim"]
[WhiteFideId "13801910"]
[BlackFideId "4102924"]
[WhiteElo "2346"]
[BlackElo "2530"]
[Result "1-0"]
[Round "2"]
[TimeControl "180+2"]
[Date "2023.06.27"]
[WhiteClock "0:01:28"]
[BlackClock "0:00:13"]
[Board "169"]

1. d4 {[%clk 0:03:00]}  Nf6 {[%clk 0:02:58]} 2. c4 {[%clk 0:03:01]}  g6 {[%clk 0:02:59]} 3. Nc3 {[%clk 0:03:00]}  d5 {[%clk 0:02:59]} 4. cxd5 {[%clk 0:03:00]}  Nxd5 {[%clk 0:02:59]} 5. Bd2 {[%clk 0:03:00]}  Bg7 {[%clk 0:02:58]} 6. e4 {[%clk 0:02:59]}  Nxc3 {[%clk 0:02:58]} 7. Bxc3 {[%clk 0:03:00]}  c5 {[%clk 0:02:57]} 8. d5 {[%clk 0:03:00]}  Bxc3+ {[%clk 0:02:58]} 9. bxc3 {[%clk 0:03:01]}  e6 {[%clk 0:02:58]} 10. Bc4 {[%clk 0:03:00]}  Qa5 {[%clk 0:02:57]} 11. Ne2 {[%clk 0:03:00]}  b5 {[%clk 0:02:54]} 12. dxe6 {[%clk 0:02:45]}  fxe6 {[%clk 0:02:34]} 13. Bd5 {[%clk 0:02:39]}  exd5 {[%clk 0:02:26]} 14. Qxd5 {[%clk 0:02:39]}  Qb6 {[%clk 0:01:24]} 15. Qe5+ {[%clk 0:02:33]}  Kd8 {[%clk 0:00:45]} 16. Qxh8+ {[%clk 0:02:33]}  Kc7 {[%clk 0:00:45]} 17. Qxh7+ {[%clk 0:02:23]}  Nd7 {[%clk 0:00:43]} 18. O-O {[%clk 0:02:20]}  Bb7 {[%clk 0:00:43]} 19. Rad1 {[%clk 0:02:14]}  Rd8 {[%clk 0:00:44]} 20. Nf4 {[%clk 0:02:09]}  Qf6 {[%clk 0:00:41]} 21. Nd5+ {[%clk 0:01:59]}  Bxd5 {[%clk 0:00:40]} 22. Rxd5 {[%clk 0:02:00]}  Kc6 {[%clk 0:00:22]} 23. Rfd1 {[%clk 0:01:55]}  Nf8 {[%clk 0:00:22]} 24. Qxa7 {[%clk 0:01:50]}  Rxd5 {[%clk 0:00:22]} 25. exd5+ {[%clk 0:01:44]}  Kd6 {[%clk 0:00:20]} 26. Qb6+ {[%clk 0:01:44]}  Ke7 {[%clk 0:00:19]} 27. Qxc5+ {[%clk 0:01:42]}  Kf7 {[%clk 0:00:20]} 28. d6 {[%clk 0:01:36]}  Nd7 {[%clk 0:00:19]} 29. Qxb5 {[%clk 0:01:28]}  Qe6 {[%clk 0:00:13]} 30. Qd5 {[%clk 0:01:28]} 1-0


[Site "https://www.chess.com"]

[Event "Titled Tuesday Blitz June 27 Early 2023"]
[White "Tarasova, Viktoriya"]
[Black "Lehtosaari, Mauri"]
[WhiteFideId "4175840"]
[BlackFideId "501999"]
[WhiteElo "2345"]
[BlackElo "2530"]
[Result "1/2-1/2"]
[Round "2"]
[TimeControl "180+2"]
[Date "2023.06.27"]
[WhiteClock "0:00:09"]
[BlackClock "0:00:02"]
[Board "170"]

1. d4 {[%clk 0:03:00]}  d5 {[%clk 0:02:57]} 2. c4 {[%clk 0:03:01]}  c6 {[%clk 0:02:56]} 3. Nf3 {[%clk 0:03:00]}  Nf6 {[%clk 0:02:57]} 4. Nc3 {[%clk 0:03:00]}  dxc4 {[%clk 0:02:56]} 5. a4 {[%clk 0:03:00]}  Bf5 {[%clk 0:02:55]} 6. Ne5 {[%clk 0:02:59]}  Nbd7 {[%clk 0:02:46]} 7. Nxc4 {[%clk 0:02:59]}  Nb6 {[%clk 0:02:47]} 8. Ne5 {[%clk 0:02:59]}  a5 {[%clk 0:02:47]} 9. g3 {[%clk 0:02:53]}  Nfd7 {[%clk 0:02:46]} 10. Nxd7 {[%clk 0:02:51]}  Qxd7 {[%clk 0:02:47]} 11. Bg2 {[%clk 0:02:51]}  Bh3 {[%clk 0:02:43]} 12. O-O {[%clk 0:02:46]}  h5 {[%clk 0:02:40]} 13. e3 {[%clk 0:02:35]}  h4 {[%clk 0:02:33]} 14. Qf3 {[%clk 0:02:34]}  Bg4 {[%clk 0:02:06]} 15. Qe4 {[%clk 0:02:29]}  h3 {[%clk 0:01:57]} 16. Bh1 {[%clk 0:02:28]}  g6 {[%clk 0:01:40]} 17. b3 {[%clk 0:02:13]}  Bf5 {[%clk 0:01:22]} 18. Qf3 {[%clk 0:02:08]}  Bg7 {[%clk 0:01:19]} 19. Bb2 {[%clk 0:01:55]}  e6 {[%clk 0:01:15]} 20. e4 {[%clk 0:01:45]}  Bxd4 {[%clk 0:01:08]} 21. exf5 {[%clk 0:01:45]}  gxf5 {[%clk 0:01:08]} 22. Rad1 {[%clk 0:01:39]}  e5 {[%clk 0:01:04]} 23. Ne2 {[%clk 0:01:29]}  c5 {[%clk 0:01:03]} 24. Ba3 {[%clk 0:00:59]}  e4 {[%clk 0:00:48]} 25. Qf4 {[%clk 0:00:55]}  Nd5 {[%clk 0:00:46]} 26. Qc1 {[%clk 0:00:48]}  Rc8 {[%clk 0:00:41]} 27. Qc4 {[%clk 0:00:33]}  O-O {[%clk 0:00:33]} 28. Nxd4 {[%clk 0:00:32]}  cxd4 {[%clk 0:00:32]} 29. Qxd4 {[%clk 0:00:32]}  Nc3 {[%clk 0:00:28]} 30. Rfe1 {[%clk 0:00:20]}  Qxd4 {[%clk 0:00:23]} 31. Rxd4 {[%clk 0:00:20]}  b5 {[%clk 0:00:14]} 32. Bxf8 {[%clk 0:00:19]}  Ne2+ {[%clk 0:00:12]} 33. Kf1 {[%clk 0:00:15]}  Nxd4 {[%clk 0:00:12]} 34. Bd6 {[%clk 0:00:13]}  Nxb3 {[%clk 0:00:11]} 35. axb5 {[%clk 0:00:13]}  Nd2+ {[%clk 0:00:07]} 36. Ke2 {[%clk 0:00:13]}  Nc4 {[%clk 0:00:08]} 37. Bf4 {[%clk 0:00:12]}  a4 {[%clk 0:00:07]} 38. Rc1 {[%clk 0:00:11]}  a3 {[%clk 0:00:08]} 39. f3 {[%clk 0:00:11]}  a2 {[%clk 0:00:07]} 40. fxe4 {[%clk 0:00:11]}  fxe4 {[%clk 0:00:04]} 41. Bxe4 {[%clk 0:00:10]}  Re8 {[%clk 0:00:05]} 42. Kf3 {[%clk 0:00:10]}  Nb6 {[%clk 0:00:02]} 43. Ra1 {[%clk 0:00:10]}  Nc4 {[%clk 0:00:01]} 44. Rxa2 {[%clk 0:00:10]}  Re7 {[%clk 0:00:01]} 45. Rc2 {[%clk 0:00:10]}  Na3 {[%clk 0:00:01]} 46. Rb2 {[%clk 0:00:09]}  Kg7 {[%clk 0:00:02]} 47. b6 {[%clk 0:00:09]}  Nc4 {[%clk 0:00:03]} 48. Rb4 {[%clk 0:00:08]}  Na5 {[%clk 0:00:03]} 49. b7 {[%clk 0:00:07]}  Nxb7 {[%clk 0:00:04]} 50. Rxb7 {[%clk 0:00:07]}  Re8 {[%clk 0:00:04]} 51. Bf5 {[%clk 0:00:06]}  Ra8 {[%clk 0:00:03]} 52. Kg4 {[%clk 0:00:06]}  Ra3 {[%clk 0:00:03]} 53. Be5+ {[%clk 0:00:05]}  Kh6 {[%clk 0:00:03]} 54. Bf4+ {[%clk 0:00:06]}  Kg7 {[%clk 0:00:03]} 55. Be4 {[%clk 0:00:06]}  Ra4 {[%clk 0:00:03]} 56. Kf3 {[%clk 0:00:06]}  Kf6 {[%clk 0:00:03]} 57. Be3 {[%clk 0:00:07]}  Kg7 {[%clk 0:00:02]} 58. Rb6 {[%clk 0:00:07]}  f6 {[%clk 0:00:02]} 59. Bf5 {[%clk 0:00:07]}  Kf7 {[%clk 0:00:02]} 60. Bxh3 {[%clk 0:00:08]}  Kg7 {[%clk 0:00:02]} 61. Bf5 {[%clk 0:00:08]}  Ra3 {[%clk 0:00:02]} 62. h4 {[%clk 0:00:08]}  Ra4 {[%clk 0:00:02]} 63. h5 {[%clk 0:00:09]}  Ra7 {[%clk 0:00:02]} 64. h6+ {[%clk 0:00:09]}  Kf8 {[%clk 0:00:01]} 65. Rxf6+ {[%clk 0:00:08]}  Kg8 {[%clk 0:00:01]} 66. Rg6+ {[%clk 0:00:09]}  Kh8 {[%clk 0:00:01]} 67. Bd4+ {[%clk 0:00:08]}  Kh7 {[%clk 0:00:01]} 68. Rg7+ {[%clk 0:00:08]}  Kxh6 {[%clk 0:00:02]} 69. Rxa7 {[%clk 0:00:09]}  Kg5 {[%clk 0:00:02]} 70. Be4 {[%clk 0:00:08]}  Kh5 {[%clk 0:00:02]} 71. Be3 {[%clk 0:00:09]} 1/2-1/2


[Site "https://www.chess.com"]